bitfinex-derivatives/quotes_SOLF0:USTF0_20250830
["timestamp","ask_amount","ask_price","bid_price","bid_amount"]
[1756589627976,2.00830873,200.42,200.39,4.19583289]
[1756589628874,2.00830873,200.42,200.4,7.42]
[1756589629278,2.00830873,200.42,200.39,4.19583289]
[1756589629482,2.00830873,200.42,200.4,7.42]
[1756589629881,2.00830873,200.42,200.39,4.19583289]
[1756589630082,2.00830873,200.42,200.4,7.42]
[1756589630276,2.00830873,200.42,200.39,4.19583289]
[1756589630473,2.00830873,200.42,200.4,7.42]
[1756589630682,2.00830873,200.42,200.39,4.19583289]
[1756589630881,2.00830873,200.42,200.4,7.42]
[1756589631082,2.00830873,200.42,200.39,4.2009297]
[1756589631582,5.34830873,200.42,200.39,11.6209297]
[1756589631978,5.34830873,200.42,200.4,7.42]
[1756589633282,5.34830873,200.42,200.39,4.2009297]
[1756589633478,5.34830873,200.42,200.4,7.42]
[1756589633682,5.34830873,200.42,200.39,4.2009297]
[1756589633883,5.34830873,200.42,200.4,7.42]
[1756589634485,5.34830873,200.42,200.39,4.2009297]
[1756589634685,5.34830873,200.42,200.4,7.42]
[1756589634984,5.34830873,200.42,200.39,4.2009297]
[1756589635588,5.34830873,200.42,200.4,7.42]
[1756589636684,5.34830873,200.42,200.39,4.2009297]
[1756589638584,5.34830873,200.42,200.4,7.42]
[1756589638986,5.34830873,200.42,200.39,4.2009297]
[1756589639182,5.34830873,200.42,200.4,7.42]
[1756589639385,3.34,200.42,200.4,7.42]
[1756589639686,3.34,200.42,200.39,4.2009297]
[1756589639887,3.34,200.42,200.4,7.42]
[1756589640387,3.37751458,200.43,200.39,4.2009297]
[1756589640587,3.37751458,200.43,200.4,7.42]
[1756589641086,3.37751458,200.43,200.39,4.2009297]
[1756589641482,3.37751458,200.43,200.4,7.42]
[1756589642289,3.37751458,200.43,200.39,4.2009297]
[1756589642492,3.37751458,200.43,200.4,7.42]
[1756589643090,3.37751458,200.43,200.39,4.2009297]
[1756589643491,3.37751458,200.43,200.4,7.42]
[1756589643691,3.37751458,200.43,200.39,4.2009297]
[1756589643986,3.37751458,200.43,200.4,7.42]
[1756589644396,3.37751458,200.43,200.39,4.2009297]
[1756589645298,3.37751458,200.43,200.4,7.42]
[1756589645692,3.37751458,200.43,200.39,4.2009297]
[1756589645892,3.37751458,200.43,200.4,7.42]
[1756589646091,3.37751458,200.43,200.39,4.2009297]
[1756589646497,2.00830873,200.42,200.39,4.2009297]
[1756589646797,2.00830873,200.42,200.4,7.42]
[1756589646996,2.00830873,200.42,200.39,4.2009297]
[1756589647189,3.37751458,200.43,200.39,4.2009297]
[1756589647392,5.38582331,200.43,200.4,7.39]
[1756589647591,5.38582331,200.43,200.39,4.2009297]
[1756589647791,3.34,200.42,200.4,7.39]
[1756589647993,5.38582331,200.43,200.4,7.39]
[1756589648495,5.38582331,200.43,200.39,4.2009297]
[1756589648696,5.38582331,200.43,200.4,7.39]
[1756589649089,2.04582331,200.43,200.4,7.39]
[1756589649287,3.34,200.42,200.4,7.39]
[1756589652800,3.34,200.42,200.38,4.2009297]
[1756589653000,3.34,200.42,200.39,7.39]
[1756589653399,3.34,200.42,200.38,4.2009297]
[1756589653600,3.34,200.42,200.39,7.39]
[1756589654201,3.34,200.42,200.38,4.2009297]
[1756589655904,3.34,200.42,200.39,7.39]
[1756589656204,3.34,200.42,200.4,7.39]
[1756589658608,2.04582331,200.43,200.38,4.2009297]
[1756589658809,2.04582331,200.43,200.4,7.39]
[1756589659007,2.04582331,200.43,200.39,4.2009297]
[1756589659307,2.04582331,200.43,200.4,7.39]
[1756589659500,2.04582331,200.43,200.39,4.2009297]
[1756589659705,2.04582331,200.43,200.41,7.39]
[1756589660005,2.04582331,200.43,200.42,4.59985823]
[1756589664811,2.04582331,200.43,200.42,7.39]
[1756589667417,3.34,200.42,200.38,11.5909297]
[1756589667618,5.34830873,200.41,200.38,7.39]
[1756589668017,5.34830873,200.41,200.38,11.5909297]
[1756589668218,5.34830873,200.41,200.39,7.39]
[1756589676725,2.00830873,200.4,200.39,7.39]
[1756589676925,2.00830873,200.41,200.38,7.39]
[1756589679321,2.00830873,200.41,200.37,4.2009297]
[1756589680126,2.00830873,200.41,200.38,7.56]
[1756589680424,2.00830873,200.41,200.37,4.2009297]
[1756589681324,2.00830873,200.41,200.38,7.56]
[1756589681723,2.00830873,200.41,200.37,4.2009297]
[1756589682225,2.00830873,200.41,200.38,7.56]
[1756589682623,2.00830873,200.41,200.37,4.2009297]
[1756589682822,2.00830873,200.41,200.38,7.56]
[1756589683026,2.00830873,200.41,200.37,4.2009297]
[1756589684426,2.00830873,200.41,200.38,7.56]
[1756589684625,2.00830873,200.41,200.37,4.2009297]
[1756589684821,2.00830873,200.41,200.38,7.56]
[1756589685224,3.31,200.4,200.38,7.56]
[1756589686127,2.00830873,200.41,200.38,7.56]
[1756589686329,5.31830873,200.41,200.38,7.56]
[1756589686926,5.31830873,200.41,200.37,4.2009297]
[1756589687131,5.31830873,200.41,200.38,7.56]
[1756589687629,5.31830873,200.41,200.37,4.2009297]
[1756589687831,2.00830873,200.39,200.38,7.56]
[1756589691737,5.31830873,200.39,200.38,7.56]
[1756589692031,2.00830873,200.39,200.38,7.56]
[1756589692635,2.00830873,200.4,200.38,7.56]
[1756589697134,2.00830873,200.4,200.35,4.1904106]
[1756589697634,2.00830873,200.4,200.36,7.56]
[1756589698337,2.00830873,200.4,200.35,4.1904106]
[1756589698837,2.00830873,200.4,200.36,7.56]
[1756589699331,2.00830873,200.4,200.35,7.56]
[1756589699534,2.00830873,200.4,200.35,11.7504106]
[1756589699733,2.00830873,200.4,200.35,4.1904106]
[1756589702139,2.00830873,200.4,200.34,4.1904106]
[1756589702341,2.00830873,200.4,200.35,7.56]
[1756589702843,2.04342072,200.4,200.35,7.56]
[1756589706344,2.04342072,200.4,200.36,7.56]
[1756589707046,2.04342072,200.4,200.35,4.1904106]
[1756589707246,2.04342072,200.4,200.35,11.7504106]
[1756589707446,2.04342072,200.4,200.36,7.52]
[1756589709545,2.04342072,200.4,200.35,4.1904106]
[1756589709745,2.04342072,200.4,200.36,7.52]
[1756589710749,2.04342072,200.4,200.35,4.1904106]
[1756589711146,2.04342072,200.4,200.36,7.52]
[1756589711348,2.04342072,200.4,200.35,4.1904106]
[1756589711746,2.04342072,200.4,200.36,7.52]
[1756589712044,2.04342072,200.4,200.35,4.1904106]
[1756589713048,2.04342072,200.4,200.36,7.52]
[1756589713248,2.04342072,200.4,200.35,4.1904106]
[1756589713649,2.04342072,200.4,200.36,7.52]
[1756589714050,2.04342072,200.4,200.35,4.1904106]
[1756589715050,2.04342072,200.4,200.36,7.52]
[1756589715754,2.04342072,200.4,200.35,4.1904106]
[1756589715953,2.04342072,200.4,200.36,7.52]
[1756589716151,2.04342072,200.4,200.35,4.1904106]
[1756589716552,2.04342072,200.4,200.36,7.52]
[1756589716752,2.04342072,200.4,200.35,4.1904106]
[1756589717250,2.04342072,200.4,200.35,4.19031267]
[1756589717653,2.04342072,200.4,200.36,7.52]
[1756589717948,2.04342072,200.4,200.35,4.19031267]
[1756589718554,2.04342072,200.4,200.36,7.52]
[1756589718956,2.04342072,200.4,200.35,4.19031267]
[1756589719959,2.04342072,200.4,200.36,7.52]
[1756589720658,2.04342072,200.4,200.35,4.19031267]
[1756589721052,2.04342072,200.4,200.36,7.52]
[1756589721251,2.04342072,200.4,200.35,4.19031267]
[1756589721457,2.04342072,200.4,200.36,7.52]
[1756589721863,2.04342072,200.4,200.35,4.19031267]
[1756589722559,2.04342072,200.4,200.36,7.52]
[1756589722958,0.03511199,200.4,200.36,7.52]
[1756589724064,0.03511199,200.4,200.39,7.52]
[1756589725765,0.03511199,200.4,200.39,11.71031267]
[1756589726565,0.03511199,200.4,200.39,7.52]
[1756589727264,0.03511199,200.4,200.39,11.70504397]
[1756589731172,3.34,200.49,200.4,7.52]
[1756589731370,2.00830873,200.47,200.4,2.00830873]
[1756589731570,2.00830873,200.47,200.41,7.52]
[1756589732778,2.00830873,200.48,200.41,4.18504397]
[1756589732970,2.00830873,200.48,200.42,7.52]
[1756589733976,2.00830873,200.48,200.43,7.52]
[1756589735371,2.00830873,200.47,200.43,7.52]
[1756589735674,2.00830873,200.45,200.4,7.52]
[1756589736374,5.37830873,200.47,200.4,7.52]
[1756589736569,5.37830873,200.47,200.41,7.52]
[1756589738677,2.00830873,200.49,200.42,8.11]
[1756589738875,3.37,200.5,200.44,8.11]
[1756589743176,2.00830873,200.51,200.44,8.11]
[1756589743680,2.00830873,200.51,200.46,8.11]
[1756589744982,2.00830873,200.51,200.45,2.00830873]
[1756589745485,2.00830873,200.51,200.46,8.11]
[1756589746380,5.37830873,200.53,200.46,8.11]
[1756589750288,5.37830873,200.53,200.48,8.11]
[1756589750884,3.37,200.53,200.48,8.11]
[1756589751290,3.37,200.53,200.49,2.00830873]
[1756589751688,3.37,200.53,200.5,8.11]
[1756589752293,3.37,200.53,200.49,2.00830873]
[1756589753088,3.37,200.53,200.5,8.11]
[1756589753388,3.37,200.53,200.49,2.00830873]
[1756589753793,3.37,200.53,200.5,8.11]
[1756589754184,3.37,200.53,200.49,2.00830873]
[1756589754584,3.37,200.53,200.5,8.11]
[1756589754990,3.37,200.53,200.49,2.00830873]
[1756589755593,3.37,200.53,200.5,8.11]
[1756589755990,3.37,200.53,200.49,2.00830873]
[1756589756494,3.37,200.53,200.5,8.11]
[1756589756695,458.90830873,200.55,200.5,8.11]
[1756589757098,458.90830873,200.55,200.49,2.00830873]
[1756589757299,456.9,200.55,200.5,8.11]
[1756589757498,456.9,200.55,200.49,2.00830873]
[1756589757694,456.9,200.55,200.5,8.11]
[1756589757997,121.5,200.55,200.49,2.00830873]
[1756589758397,124.87,200.55,200.49,2.00830873]
[1756589758589,121.5,200.55,200.49,2.00830873]
[1756589759000,124.87,200.55,200.5,8.11]
[1756589759492,121.5,200.55,200.49,2.00830873]
[1756589759894,3.37,200.54,200.49,10.11830873]
[1756589760594,121.5,200.55,200.49,2.00830873]
[1756589761094,3.37,200.54,200.49,2.00830873]
[1756589761298,121.5,200.55,200.49,2.00830873]
[1756589761597,3.37,200.54,200.49,10.11830873]
[1756589761797,121.5,200.55,200.49,2.00830873]
[1756589762394,3.37,200.54,200.49,10.11830873]
[1756589762594,121.5,200.55,200.49,2.00830873]
[1756589763195,3.37,200.54,200.49,10.11830873]
[1756589763397,121.5,200.55,200.49,2.00830873]
[1756589763597,3.37,200.54,200.49,10.11830873]
[1756589763798,121.5,200.55,200.49,2.00830873]
[1756589764196,2.00830873,200.57,200.49,2.00830873]
[1756589764400,2.00830873,200.57,200.49,10.11830873]
[1756589764699,3.37,200.56,200.49,10.11830873]
[1756589764898,2.00830873,200.57,200.49,10.11830873]
[1756589765798,3.37,200.56,200.49,10.11830873]
[1756589773803,5.37830873,200.56,200.49,10.11830873]
[1756589778411,3.37,200.56,200.49,10.11830873]
[1756589778714,3.37,200.56,200.52,7.43]
[1756589779215,3.37,200.56,200.51,2.00830873]
[1756589780111,3.37,200.56,200.52,7.43]
[1756589780507,3.37,200.56,200.51,2.00830873]
[1756589781108,3.37,200.56,200.52,7.43]
[1756589782613,3.37,200.56,200.51,2.00830873]
[1756589783014,3.37,200.56,200.52,7.43]
[1756589783209,3.37,200.56,200.51,2.00830873]
[1756589786121,3.37,200.56,200.52,7.43]
[1756589786618,3.37,200.56,200.51,2.00830873]
[1756589786813,3.37,200.56,200.52,7.43]
[1756589787016,5.37830873,200.57,200.52,7.43]
[1756589787213,2.00830873,200.57,200.51,6.1933527]
[1756589787617,5.37830873,200.57,200.52,7.43]
[1756589787823,2.00830873,200.57,200.51,6.1933527]
[1756589788623,3.37,200.58,200.52,7.43]
[1756589790625,3.37,200.58,200.52,11.61504397]
[1756589799028,3.37,200.58,200.52,4.18504397]
[1756589799230,5.39830873,200.59,200.53,7.77]
[1756589799738,0.86799277,200.6,200.49,5.60266618]
[1756589799739,3.39,200.54,200.5,4.18504397]
[1756589799930,3.39,200.54,200.49,4.18504397]
[1756589800327,3.39,200.54,200.49,11.95504397]
[1756589800526,3.39,200.54,200.49,4.18504397]
[1756589800731,3.39,200.52,200.49,11.95504397]
[1756589801235,3.39,200.52,200.49,4.18504397]
[1756589801439,3.39,200.52,200.5,7.77]
[1756589802730,3.39,200.52,200.48,11.95504397]
[1756589802936,3.39,200.52,200.49,7.77]
[1756589803542,2.00830873,200.53,200.49,7.77]
[1756589803841,3.39,200.52,200.49,7.77]
[1756589804744,3.39,200.52,200.48,4.18504397]
[1756589805245,3.39,200.52,200.49,7.77]
[1756589806639,3.39,200.52,200.48,4.18504397]
[1756589806840,3.39,200.52,200.49,7.77]
[1756589807135,2.00830873,200.53,200.48,7.77]
[1756589807341,3.39,200.52,200.48,7.77]
[1756589807537,2.00830873,200.53,200.48,7.77]
[1756589807845,3.39,200.52,200.48,7.77]
[1756589808046,2.00830873,200.53,200.46,4.18504397]
[1756589808245,3.39,200.51,200.48,7.77]
[1756589808447,3.39,200.51,200.46,4.18504397]
[1756589809140,3.39,200.51,200.47,7.77]
[1756589809444,3.39,200.51,200.46,4.18504397]
[1756589810746,2.00830873,200.51,200.47,7.77]
[1756589810947,3.39,200.5,200.47,7.77]
[1756589811442,2.00830873,200.51,200.47,7.77]
[1756589811642,5.86,200.53,200.42,5.60266618]
[1756589811643,3.39,200.48,200.43,11.95504397]
[1756589811844,2.00830873,200.49,200.43,4.18504397]
[1756589812146,5.39830873,200.49,200.44,7.77]
[1756589812348,2.00830873,200.49,200.44,7.77]
[1756589812641,3.39,200.48,200.43,4.18504397]
[1756589812840,3.39,200.48,200.44,7.77]
[1756589813238,3.39,200.48,200.43,4.18504397]
[1756589813640,3.39,200.48,200.44,7.77]
[1756589813848,3.39,200.48,200.43,4.18504397]
[1756589814244,3.39,200.48,200.42,4.18504397]
[1756589814849,3.39,200.48,200.43,7.77]
[1756589815344,3.39,200.48,200.42,4.18504397]
[1756589815541,3.39,200.48,200.43,7.77]
[1756589815847,5.39830873,200.47,200.44,7.77]
[1756589816047,3.39,200.46,200.44,7.77]
[1756589820456,2.00830873,200.47,200.41,7.77]
[1756589827667,5.86,200.53,200.41,7.77]
[1756589827668,5.40830873,200.45,200.41,7.77]
[1756589827870,2.00830873,200.45,200.41,7.77]
[1756589828060,2.00830873,200.43,200.37,7.37]
[1756589834967,343.54002004,200.58,200.36,62.0354196]
[1756589834968,2.00830873,200.45,200.39,7.37]
[1756589835166,5.40830873,200.45,200.39,7.37]
[1756589835667,5.40830873,200.44,200.38,2.00830873]
[1756589835868,5.40830873,200.44,200.39,7.37]
[1756589836068,5.40830873,200.44,200.38,2.00830873]
[1756589836365,5.40830873,200.44,200.39,7.37]
[1756589837665,3.4,200.5,200.38,2.00830873]
[1756589837970,2.00830873,200.47,200.41,7.37]
[1756589840473,2.00830873,200.45,200.41,7.37]
[1756589840663,2.00830873,200.45,200.39,7.37]
[1756589858198,2.00830873,200.45,200.4,7.74]
[1756589858800,2.00830873,200.45,200.39,4.18504397]
[1756589859489,2.00830873,200.45,200.4,7.74]
[1756589859697,2.00830873,200.45,200.39,4.18504397]
[1756589860089,3.38,200.44,200.39,4.18504397]
[1756589860394,3.38,200.44,200.4,7.74]
[1756589860900,3.38,200.44,200.39,4.18504397]
[1756589861096,3.38,200.44,200.4,7.74]
[1756589861400,3.38,200.44,200.39,4.18504397]
[1756589861598,3.38,200.44,200.4,7.74]
[1756589861903,3.38,200.44,200.39,4.18504397]
[1756589862100,3.38,200.44,200.4,7.74]
[1756589862301,3.38,200.44,200.39,4.18504397]
[1756589862598,3.38,200.44,200.4,7.74]
[1756589863201,3.38,200.44,200.39,4.18504397]
[1756589863403,3.38,200.44,200.4,7.74]
[1756589863602,3.38,200.44,200.39,4.18504397]
[1756589863802,3.38,200.44,200.4,7.74]
[1756589864402,3.38,200.44,200.39,4.18504397]
[1756589864703,3.38,200.44,200.4,7.74]
[1756589864904,3.38,200.44,200.39,4.18504397]
[1756589865101,5.53492552,200.53,200.4,7.74]
[1756589865301,2.00830873,200.46,200.4,4.18504397]
[1756589866008,2.00830873,200.46,200.41,7.74]
[1756589866205,2.00830873,200.46,200.4,4.18504397]
[1756589867008,5.38830873,200.46,200.41,7.74]
[1756589867409,2.00830873,200.46,200.4,4.18504397]
[1756589867605,3.38,200.45,200.42,7.74]
[1756589868404,3.38,200.45,200.4,4.18504397]
[1756589869410,3.38,200.45,200.41,7.74]
[1756589869611,3.38,200.45,200.4,4.18504397]
[1756589869909,3.38,200.45,200.41,7.74]
[1756589870306,3.38,200.45,200.4,4.18504397]
[1756589870511,3.38,200.45,200.41,7.74]
[1756589871309,3.38,200.45,200.4,4.18504397]
[1756589872308,3.38,200.45,200.41,7.74]
[1756589872815,5.38830873,200.46,200.41,7.74]
[1756589874216,2.00830873,200.46,200.4,4.18504397]
[1756589874415,5.38830873,200.46,200.41,7.74]
[1756589874615,2.00830873,200.46,200.4,4.18504397]
[1756589874909,5.38830873,200.44,200.4,4.18504397]
[1756589875114,5.38830873,200.44,200.41,7.74]
[1756589875413,5.38830873,200.44,200.4,4.18504397]
[1756589875615,5.38830873,200.44,200.41,7.74]
[1756589876618,5.38830873,200.44,200.4,4.18504397]
[1756589877716,5.38830873,200.44,200.41,7.74]
[1756589877918,3.38,200.41,200.37,4.18504397]
[1756589878115,3.38,200.38,200.36,7.74]
[1756589879320,3.38,200.38,200.34,4.18504397]
[1756589879716,3.38,200.38,200.35,7.74]
[1756589880014,5.38830873,200.39,200.34,4.18504397]
[1756589880416,5.38830873,200.37,200.35,7.74]
[1756589880618,5.38830873,200.38,200.34,7.74]
[1756589880921,5.53492552,200.46,200.34,7.74]
[1756589880922,37.02,200.46,200.35,7.74]
[1756589881218,2.00830873,200.41,200.36,7.74]
[1756589881514,3.38,200.47,200.37,11.92504397]
[1756589881717,5.38830873,200.45,200.41,7.74]
[1756589881912,3.38,200.44,200.41,7.74]
[1756589882322,3.38,200.44,200.4,4.18504397]
[1756589882617,3.38,200.44,200.41,7.74]
[1756589883017,3.38,200.44,200.4,4.18504397]
[1756589883416,3.38,200.44,200.41,7.74]
[1756589883611,3.38,200.44,200.4,4.18504397]
[1756589884120,3.38,200.44,200.41,7.74]
[1756589885515,3.38,200.44,200.4,4.18504397]
[1756589885918,3.38,200.44,200.41,7.74]
[1756589886222,3.38,200.44,200.4,4.18504397]
[1756589887416,3.38,200.44,200.41,8.09]
[1756589887618,3.38,200.44,200.4,4.18504397]
[1756589888119,3.38,200.44,200.41,8.09]
[1756589888314,3.38,200.44,200.4,4.18504397]
[1756589888820,3.38,200.44,200.41,8.09]
[1756589889023,3.38,200.44,200.4,4.18504397]
[1756589889221,5.38830873,200.45,200.41,8.09]
[1756589889521,5.38830873,200.45,200.4,4.18504397]
[1756589889923,2.00830873,200.45,200.4,4.18504397]
[1756589890221,3.38,200.44,200.4,4.18504397]
[1756589890421,3.38,200.44,200.41,8.09]
[1756589890616,3.38,200.44,200.4,4.18504397]
[1756589891121,3.38,200.44,200.41,8.09]
[1756589891421,3.38,200.44,200.4,4.18504397]
[1756589892323,3.38,200.44,200.41,8.09]
[1756589892722,3.38,200.44,200.4,4.18504397]
[1756589892918,3.38,200.44,200.41,8.09]
[1756589893121,3.38,200.44,200.4,4.18504397]
[1756589893423,3.38,200.44,200.41,8.09]
[1756589893724,3.38,200.44,200.4,4.18504397]
[1756589894026,3.38,200.44,200.41,8.09]
[1756589894227,3.38,200.44,200.4,4.18504397]
[1756589894625,3.38,200.44,200.41,8.09]
[1756589894824,3.38,200.44,200.4,4.18504397]
[1756589895025,3.38,200.44,200.42,8.09]
[1756589895227,3.38,200.44,200.43,4.60769509]
[1756589897222,2.00830873,200.45,200.43,4.60769509]
[1756589897426,5.38830873,200.45,200.44,4.60769509]
[1756589897730,2.00830873,200.45,200.44,12.69769509]
[1756589898029,2.00830873,200.45,200.44,12.69803564]
[1756589898426,5.38830873,200.45,200.44,12.69803564]
[1756589898629,5.38830873,200.45,200.44,4.60803564]
[1756589901529,5.38830873,200.45,200.44,4.60801318]
[1756589908629,5.38830873,200.45,200.4,4.18504397]
[1756589908932,5.38830873,200.45,200.41,4.60596352]
[1756589909133,5.38830873,200.45,200.43,8.09]
[1756589909335,5.38830873,200.45,200.44,4.60604402]
[1756589919336,5.38830873,200.45,200.39,7.42]
[1756589921539,2.00830873,200.43,200.39,7.42]
[1756589922637,2.00830873,200.43,200.38,4.19761953]
[1756589922839,2.00830873,200.43,200.39,7.42]
[1756589923037,2.00830873,200.43,200.38,4.19761953]
[1756589923337,2.00830873,200.43,200.39,4.19761953]
[1756589923637,2.00830873,200.43,200.4,7.42]
[1756589923838,3.38,200.45,200.4,7.42]
[1756589924040,2.00830873,200.44,200.4,7.42]
[1756589924432,5.38830873,200.44,200.39,4.19761953]
[1756589925041,5.38830873,200.44,200.4,7.42]
[1756589925342,5.38830873,200.44,200.39,4.19761953]
[1756589926435,5.38830873,200.44,200.4,7.42]
[1756589926633,5.38830873,200.44,200.39,4.19761953]
[1756589927041,5.38830873,200.44,200.4,7.42]
[1756589927438,5.38830873,200.44,200.39,4.19761953]
[1756589927635,3.38,200.43,200.4,7.42]
[1756589927834,3.38,200.43,200.39,4.19761953]
[1756589928243,3.38,200.43,200.4,7.42]
[1756589928443,3.38,200.43,200.39,4.19761953]
[1756589930050,3.38,200.43,200.4,7.42]
[1756589930545,3.38,200.43,200.39,4.19761953]
[1756589930749,3.38,200.43,200.4,7.42]
[1756589931253,3.38,200.43,200.39,4.19761953]
[1756589931645,3.38,200.43,200.4,7.42]
[1756589931845,3.38,200.43,200.39,4.19761953]
[1756589932456,3.38,200.43,200.4,7.42]
[1756589932654,3.38,200.43,200.39,4.19761953]
[1756589932854,3.38,200.43,200.4,7.42]
[1756589933353,3.38,200.43,200.39,4.19761953]
[1756589936456,3.38,200.43,200.4,7.42]
[1756589936657,3.38,200.43,200.39,4.19761953]
[1756589937055,3.38,200.43,200.4,7.42]
[1756589937256,3.38,200.43,200.39,4.19761953]
[1756589937654,3.38,200.43,200.4,7.42]
[1756589937959,3.38,200.43,200.39,4.19761953]
[1756589938659,3.38,200.43,200.4,7.42]
[1756589939158,3.38,200.43,200.39,4.19761953]
[1756589939358,3.38,200.43,200.4,7.42]
[1756589939558,3.38,200.43,200.39,4.19761953]
[1756589939758,107.82,200.47,200.4,7.42]
[1756589939952,2.00830873,200.44,200.4,7.42]
[1756589940351,2.00830873,200.44,200.39,4.19761953]
[1756589940554,5.38830873,200.44,200.39,4.19761953]
[1756589940756,5.38830873,200.44,200.4,7.42]
[1756589941661,5.38830873,200.44,200.39,4.19761953]
[1756589941860,5.38830873,200.44,200.4,7.42]
[1756589942164,5.38830873,200.44,200.39,4.19761953]
[1756589942963,5.38830873,200.44,200.4,7.42]
[1756589943262,2.00830873,200.47,200.41,7.42]
[1756589944563,2.00830873,200.47,200.41,11.61761953]
[1756589944763,2.00830873,200.47,200.41,4.19761953]
[1756589945256,2.00830873,200.47,200.42,7.42]
[1756589945964,2.00830873,200.47,200.41,4.19761953]
[1756589946859,2.00830873,200.47,200.42,7.42]
[1756589947059,5.38830873,200.47,200.42,7.42]
[1756589947364,5.38830873,200.47,200.41,4.19761953]
[1756589947662,5.38830873,200.47,200.42,7.32]
[1756589948167,5.38830873,200.47,200.41,4.19761953]
[1756589948367,3.38,200.46,200.43,7.32]
[1756589948555,3.38,200.46,200.41,4.19761953]
[1756589948961,3.38,200.46,200.42,11.51761953]
[1756589949165,3.38,200.46,200.42,4.19761953]
[1756589949862,2.00830873,200.49,200.44,7.32]
[1756589950063,5.38830873,200.49,200.44,4.19761953]
[1756589950367,5.38830873,200.49,200.45,7.32]
[1756589950762,5.38830873,200.49,200.44,4.19761953]
[1756589951069,5.38830873,200.52,200.45,11.51761953]
[1756589951367,5.38830873,200.52,200.46,7.32]
[1756589951971,5.38830873,200.52,200.46,4.19761953]
[1756589952566,3.38,200.52,200.47,7.32]
[1756589954273,2.00830873,200.53,200.47,7.32]
[1756589954666,2.00830873,200.53,200.48,7.32]
[1756589954966,335.32,200.55,200.48,11.51761953]
[1756589955174,337.32830873,200.55,200.49,7.32]
[1756589959073,335.32,200.55,200.49,7.32]
[1756589959271,337.32830873,200.55,200.49,7.32]
[1756589961175,337.32830873,200.55,200.47,2.00830873]
[1756589961375,3.38,200.54,200.48,7.32]
[1756589969177,2.00830873,200.53,200.48,7.32]
[1756589969375,5.36830873,200.51,200.45,9.32830873]
[1756589971778,5.36830873,200.51,200.45,2.00830873]
[1756589971978,3.36,200.51,200.45,2.00830873]
[1756589972182,3.36,200.51,200.46,7.32]
[1756589972381,3.36,200.51,200.45,2.00830873]
[1756589972575,3.36,200.51,200.46,7.32]
[1756589972780,3.36,200.51,200.45,2.00830873]
[1756589972982,3.36,200.51,200.46,7.32]
[1756589974182,124.44,200.52,200.46,7.32]
[1756589977782,3.37,200.51,200.46,2.00830873]
[1756589977988,121.08,200.52,200.46,2.00830873]
[1756589978188,3.37,200.51,200.44,7.61]
[1756589978387,121.08,200.52,200.46,2.00830873]
[1756589978589,3.37,200.51,200.46,9.61830873]
[1756589978790,121.08,200.52,200.46,2.00830873]
[1756589978990,3.37,200.51,200.46,9.61830873]
[1756589979493,121.08,200.52,200.46,2.00830873]
[1756589980096,3.37,200.51,200.46,9.61830873]
[1756589980390,121.08,200.52,200.46,2.00830873]
[1756589980597,3.37,200.51,200.46,9.61830873]
[1756589980796,3.37,200.51,200.46,2.00830873]
[1756589981088,121.08,200.52,200.46,9.61830873]
[1756589981295,3.37,200.51,200.46,9.61830873]
[1756589981496,121.08,200.52,200.46,2.00830873]
[1756589981690,3.37,200.51,200.46,9.61830873]
[1756589982294,121.08,200.52,200.46,2.00830873]
[1756589982795,3.37,200.51,200.46,9.61830873]
[1756589982996,121.08,200.52,200.46,2.00830873]
[1756589984092,3.37,200.51,200.46,9.61830873]
[1756589985293,121.08,200.52,200.46,2.00830873]